bitfinex-derivatives/quotes_BTCF0:USTF0_20260113
["timestamp","ask_amount","ask_price","bid_price","bid_amount"]
[1768324929852,0.00535601,93353.0,93338.0,0.18642945]
[1768324930043,0.00535601,93353.0,93338.0,0.06]
[1768324930246,0.00535601,93353.0,93338.0,0.05464169]
[1768324930549,0.00535601,93353.0,93334.0,0.18642945]
[1768324930753,0.00535601,93353.0,93335.0,0.09333382]
[1768324930950,0.00535601,93353.0,93336.0,0.09333382]
[1768324931151,0.00535601,93353.0,93336.0,0.14333382]
[1768324932651,0.00535601,93353.0,93338.0,0.18642945]
[1768324932858,0.09652,93369.0,93346.0,0.09333382]
[1768324933051,0.0739344,93370.0,93349.0,0.09309563]
[1768324933256,0.06036642,93370.0,93350.0,0.09333382]
[1768324933454,0.06036642,93370.0,93350.0,0.15333382]
[1768324933655,0.09652,93372.0,93350.0,0.15333382]
[1768324933851,0.09716244,93367.0,93350.0,0.06]
[1768324934053,0.09934297,93366.0,93346.0,0.09652]
[1768324934354,0.09716244,93365.0,93346.0,0.14652]
[1768324934550,0.09716244,93364.0,93347.0,0.09652]
[1768324934756,0.09716244,93363.0,93347.0,0.15652]
[1768324936353,0.09716244,93363.0,93347.0,0.09652]
[1768324936555,0.09459679,93359.0,93335.0,0.1203]
[1768324936760,0.09574389,93370.0,93335.0,0.1203]
[1768324936761,0.18704885,93369.0,93337.0,0.09125637]
[1768324936944,0.09459679,93364.0,93340.0,0.09125637]
[1768324937153,0.09459679,93361.0,93340.0,0.06]
[1768324937653,0.18704885,93361.0,93340.0,0.06]
[1768324938062,0.18704885,93366.0,93342.0,0.18853522]
[1768324938260,0.09459679,93365.0,93343.0,0.09125637]
[1768324938457,0.18704885,93365.0,93343.0,0.15125637]
[1768324938662,0.09459679,93364.0,93343.0,0.15125637]
[1768324939358,0.18704885,93370.0,93346.0,0.09727885]
[1768324939557,0.09459679,93369.0,93346.0,0.14727885]
[1768324939752,0.18704885,93369.0,93346.0,0.15727885]
[1768324939952,0.09459679,93368.0,93346.0,0.15727885]
[1768324940258,0.09245206,93373.0,93348.0,0.09727885]
[1768324940556,0.09648,93372.0,93350.0,0.09727885]
[1768324940761,0.09459679,93365.0,93347.0,0.09648]
[1768324940961,0.09459679,93365.0,93347.0,0.14648]
[1768324942861,0.09459679,93365.0,93347.0,0.15648]
[1768324943660,0.09459679,93363.0,93338.0,0.09125637]
[1768324943863,0.09459679,93356.0,93337.0,0.09648]
[1768324944248,0.09459679,93356.0,93337.0,0.15648]
[1768324944455,0.09459679,93356.0,93337.0,0.09648]
[1768324944748,0.09459679,93356.0,93318.0,0.01072]
[1768324944749,0.09459679,93349.0,93328.0,0.09125637]
[1768324944956,0.09459679,93347.0,93329.0,0.09648]
[1768324945154,0.09459679,93347.0,93326.0,0.09648]
[1768324945155,0.09245206,93346.0,93326.0,0.09648]
[1768324945363,0.18704885,93346.0,93326.0,0.09648]
[1768324946853,0.09245206,93351.0,93328.0,0.09125637]
[1768324947064,0.09459679,93352.0,93331.0,0.09125637]
[1768324947453,0.09459679,93351.0,93330.0,0.09727885]
[1768324948669,0.09459679,93351.0,93331.0,0.09125637]
[1768324949351,0.09459679,93351.0,93331.0,0.15125637]
[1768324949558,0.09648,93356.0,93333.0,0.09125637]
[1768324949756,0.09648,93356.0,93334.0,0.09125637]
[1768324949959,0.09245206,93357.0,93334.0,0.14125637]
[1768324950162,0.18893206,93357.0,93334.0,0.09125637]
[1768324950362,0.18704885,93356.0,93334.0,0.09125637]
[1768324950659,0.09459679,93355.0,93334.0,0.09125637]
[1768324952268,0.19107679,93357.0,93336.0,0.09125637]
[1768324952564,0.09648,93364.0,93343.0,0.09125637]
[1768324952866,0.09648,93364.0,93337.0,0.09648]
[1768324952867,0.09459679,93355.0,93337.0,0.09648]
[1768324953056,0.09459679,93354.0,93337.0,0.09648]
[1768324953556,0.09459679,93353.0,93330.0,0.09125637]
[1768324953756,0.09459679,93353.0,93331.0,0.09648]
[1768324954558,0.0999528,93353.0,93331.0,0.09648]
[1768324957456,0.0999528,93353.0,93331.0,0.1904484]
[1768324957669,0.0999528,93353.0,93332.0,0.0939684]
[1768324959167,0.0999528,93353.0,93333.0,0.0939684]
[1768324960062,0.09949167,93362.0,93339.0,0.19269537]
[1768324960260,0.06563701,93373.0,93347.0,0.09872697]
[1768324960461,0.00535487,93373.0,93357.0,0.19269537]
[1768324960658,0.00535487,93373.0,93358.0,0.19269537]
[1768324960876,0.00535487,93373.0,93359.0,0.19269537]
[1768324962468,0.00535487,93373.0,93360.0,0.19269537]
[1768324962662,0.05872764,93381.0,93362.0,0.0939684]
[1768324962860,0.09751777,93383.0,93362.0,0.0939684]
[1768324963561,0.11065748,93383.0,93362.0,0.0939684]
[1768324964170,0.19700944,93382.0,93358.0,0.09648]
[1768324964372,0.09751777,93381.0,93358.0,0.09648]
[1768324964566,0.09751777,93381.0,93358.0,0.2404484]
[1768324964767,0.09751777,93381.0,93359.0,0.0939684]
[1768324964967,0.01313971,93383.0,93361.0,0.09872697]
[1768324965268,0.19700944,93385.0,93361.0,0.09872697]
[1768324965463,0.09751777,93384.0,93362.0,0.0939684]
[1768324965670,0.09751777,93383.0,93362.0,0.0939684]
[1768324965865,0.09751777,93382.0,93361.0,0.09872697]
[1768324966066,0.09751777,93381.0,93358.0,0.09648]
[1768324966273,0.09751777,93381.0,93358.0,0.15648]
[1768324966789,0.09751777,93380.0,93358.0,0.2504484]
[1768324967879,0.24016754,93387.0,93366.0,0.0939684]
[1768324969282,0.09751777,93386.0,93365.0,0.09872697]
[1768324970671,0.19700944,93386.0,93365.0,0.09872697]
[1768324970871,0.09751777,93384.0,93362.0,0.0939684]
[1768324971380,0.09553803,93380.0,93362.0,0.1539684]
[1768324971582,0.24016754,93387.0,93364.0,0.0939684]
[1768324971884,0.09553803,93380.0,93365.0,0.0939684]
[1768324972182,0.24016754,93387.0,93365.0,0.1539684]
[1768324972573,0.33768531,93387.0,93365.0,0.1539684]
[1768324972981,0.09751777,93384.0,93365.0,0.06]
[1768324973183,0.09553803,93380.0,93365.0,0.06]
[1768324973380,0.09553803,93380.0,93365.0,0.02]
[1768324974673,0.09553803,93380.0,93363.0,0.07188774]
[1768324974874,0.09553803,93380.0,93363.0,0.12188774]
[1768324975388,0.09751777,93384.0,93370.0,0.09553803]
[1768324975579,0.09751777,93398.0,93376.0,0.0939684]
[1768324975780,0.1930558,93390.0,93371.0,0.09648]
[1768324975978,0.1930558,93390.0,93371.0,0.14648]
[1768324976584,0.1930558,93390.0,93371.0,0.09648]
[1768324976785,0.1930558,93390.0,93371.0,0.15648]
[1768324977488,0.09751777,93389.0,93371.0,0.09648]
[1768324977672,0.09751777,93388.0,93372.0,0.09648]
[1768324981690,0.09553803,93382.0,93362.0,0.0939684]
[1768324981891,0.09553803,93382.0,93363.0,0.09648]
[1768324982182,0.09553803,93382.0,93364.0,0.0939684]
[1768324982386,0.09553803,93382.0,93365.0,0.0939684]
[1768324982587,0.09751777,93386.0,93365.0,0.1439684]
[1768324982783,0.19700944,93386.0,93365.0,0.1439684]
[1768324983086,0.09751777,93385.0,93365.0,0.1439684]
[1768324983288,0.09751777,93389.0,93370.0,0.09553803]
[1768324983484,0.19700944,93389.0,93366.0,0.0939684]
[1768324983686,0.19700944,93389.0,93370.0,0.09553803]
[1768324983900,0.19700944,93389.0,93371.0,0.09648]
[1768324984082,0.00535372,93393.0,93372.0,0.0939684]
[1768324984287,0.00535372,93393.0,93384.0,0.0939684]
[1768324984597,0.09751777,93404.0,93384.0,0.1539684]
[1768324984789,0.109981,93404.0,93390.0,0.09553803]
[1768324985087,0.109981,93404.0,93390.0,0.15553803]
[1768324985293,0.109981,93404.0,93390.0,0.06871867]
[1768324985488,0.109981,93404.0,93384.0,0.0939684]
[1768324985696,0.109981,93404.0,93384.0,0.1539684]
[1768324986292,0.09647764,93393.0,93384.0,0.06]
[1768324986488,0.09647764,93393.0,93384.0,0.05802755]
[1768324986689,0.19196874,93399.0,93385.0,0.09648]
[1768324986890,0.09647764,93399.0,93378.0,0.092391]
[1768324987194,0.09647764,93399.0,93379.0,0.188871]
[1768324987394,0.09647764,93399.0,93379.0,0.238871]
[1768324987592,0.09647764,93397.0,93379.0,0.05]
[1768324987785,0.09647764,93396.0,93379.0,0.05]
[1768324988093,0.09647764,93396.0,93380.0,0.09648]
[1768324988393,0.09647764,93402.0,93381.0,0.092391]
[1768324988694,0.09553803,93400.0,93382.0,0.092391]
[1768324988898,0.09553803,93400.0,93382.0,0.142391]
[1768324989095,0.19201567,93400.0,93382.0,0.05]
[1768324989301,0.09647764,93399.0,93380.0,0.09648]
[1768324989488,0.09647764,93399.0,93380.0,0.34440903]
[1768324989695,0.09647764,93399.0,93381.0,0.092391]
[1768324989889,0.09647764,93399.0,93381.0,0.152391]
[1768324990091,0.09553803,93400.0,93382.0,0.19222608]
[1768324990292,0.01246323,93404.0,93384.0,0.092391]
[1768324990598,0.00235535,93405.0,93385.0,0.092391]
[1768324990798,0.00235535,93405.0,93385.0,0.152391]
[1768324990998,0.00235535,93405.0,93385.0,0.142391]
[1768324991692,0.0147995,93405.0,93385.0,0.092391]
[1768324991992,0.0147995,93405.0,93385.0,0.152391]
[1768324992389,0.09553803,93400.0,93385.0,0.092391]
[1768324992595,0.09553803,93400.0,93378.0,0.092391]
[1768324992596,0.28750677,93400.0,93378.0,0.092391]
[1768324992899,0.28750677,93400.0,93380.0,0.092391]
[1768324993099,0.28750677,93400.0,93380.0,0.142391]
[1768324993301,0.19201567,93400.0,93381.0,0.092391]
[1768324993600,0.19201567,93400.0,93381.0,0.142391]
[1768324994000,0.19201567,93400.0,93382.0,0.092391]
[1768324994301,0.19201567,93400.0,93382.0,0.152391]
[1768324995291,0.0147995,93405.0,93384.0,0.092391]
[1768324995488,0.0147995,93405.0,93385.0,0.092391]
[1768324995795,0.0147995,93405.0,93386.0,0.09644]
[1768324995796,0.09553803,93400.0,93386.0,0.09644]
[1768324996298,0.09553803,93400.0,93385.0,0.092391]
[1768324996602,0.09553803,93400.0,93386.0,0.09644]
[1768324996810,0.0147995,93405.0,93390.0,0.09553803]
[1768324997002,0.0147995,93405.0,93390.0,0.14553803]
[1768324997388,0.0147995,93405.0,93390.0,0.05]
[1768324997606,0.0147995,93405.0,93387.0,0.09441658]
[1768324997899,0.0147995,93405.0,93387.0,0.14441658]
[1768324998506,0.0147995,93405.0,93390.0,0.09553803]
[1768324998696,0.0147995,93405.0,93390.0,0.23995461]
[1768324999197,0.00235535,93405.0,93395.0,0.09441658]
[1768324999397,0.00235535,93405.0,93396.0,0.09441658]
[1768324999607,0.00235535,93405.0,93396.0,0.15441658]
[1768324999906,0.00235535,93405.0,93397.0,0.09441658]
[1768325000206,0.00235535,93405.0,93397.0,0.14441658]
[1768325000400,0.00235535,93405.0,93397.0,0.09441658]
[1768325000602,0.00235535,93405.0,93397.0,0.25085658]
[1768325001201,0.09644,93428.0,93402.0,0.09441658]
[1768325001400,0.10007172,93435.0,93411.0,0.09441658]
[1768325001605,0.09553803,93430.0,93412.0,0.18707554]
[1768325001801,0.19325516,93430.0,93410.0,0.09644]
[1768325001993,0.09884353,93429.0,93410.0,0.09644]
[1768325002197,0.09884353,93429.0,93410.0,0.15644]
[1768325002397,0.09884353,93429.0,93410.0,0.09644]
[1768325002999,0.09771713,93425.0,93410.0,0.09644]
[1768325003400,0.09884353,93429.0,93410.0,0.09644]
[1768325005205,0.09884353,93429.0,93410.0,0.24197803]
[1768325005406,0.09553803,93430.0,93410.0,0.24197803]
[1768325005605,0.09553803,93430.0,93410.0,0.14644]
[1768325005812,0.19438156,93430.0,93410.0,0.24197803]
[1768325006202,0.09553803,93430.0,93411.0,0.09441658]
[1768325006401,0.09553803,93430.0,93412.0,0.09441658]
[1768325007305,0.09553803,93430.0,93410.0,0.09644]
[1768325007506,0.09553803,93430.0,93411.0,0.09441658]
[1768325008301,0.00235459,93435.0,93401.0,0.09441658]
[1768325008302,0.09553803,93421.0,93401.0,0.09441658]
[1768325009514,0.09553803,93411.0,93400.0,0.09644]
[1768325009810,0.09771713,93434.0,93403.0,0.09265896]
[1768325010014,0.09553803,93430.0,93410.0,0.09553803]
[1768325010213,0.09553803,93430.0,93410.0,0.15553803]
[1768325010712,0.09884353,93433.0,93410.0,0.15553803]
[1768325010900,0.09884353,93433.0,93410.0,0.24995461]
[1768325011099,0.09553803,93430.0,93410.0,0.24995461]
[1768325011302,0.09884353,93433.0,93410.0,0.15441658]
[1768325012215,0.09884353,93433.0,93411.0,0.09441658]
[1768325012904,0.09884353,93433.0,93411.0,0.14441658]
[1768325014111,0.09884353,93433.0,93412.0,0.09441658]
[1768325014512,0.09884353,93433.0,93413.0,0.09441658]
[1768325014710,0.09771713,93434.0,93413.0,0.14441658]
[1768325014918,0.09771713,93434.0,93415.0,0.0979443]
[1768325015121,0.00235459,93435.0,93416.0,0.0979443]
[1768325015311,0.00235459,93435.0,93417.0,0.0979443]
[1768325015517,0.00235459,93435.0,93417.0,0.1579443]
[1768325016120,0.00235459,93435.0,93418.0,0.0979443]
[1768325016414,0.00235459,93435.0,93412.0,0.18938002]
[1768325016616,0.09755282,93429.0,93402.0,0.0979443]
[1768325016811,0.09755282,93427.0,93403.0,0.09644]
[1768325017016,0.00235459,93435.0,93404.0,0.09644]
[1768325017017,0.19538619,93424.0,93404.0,0.09644]
[1768325017214,0.09755282,93421.0,93398.0,0.0979443]
[1768325017422,0.19538619,93421.0,93399.0,0.09644]
[1768325017614,0.19538619,93421.0,93399.0,0.2443843]
[1768325018613,0.09755282,93418.0,93399.0,0.14644]
[1768325018814,0.19538619,93426.0,93400.0,0.0979443]
[1768325019020,0.19538619,93425.0,93401.0,0.1943843]
[1768325019225,0.19538619,93425.0,93401.0,0.2443843]
[1768325019521,0.19538619,93425.0,93402.0,0.0979443]
[1768325019723,0.19538619,93425.0,93402.0,0.1579443]
[1768325020016,0.19538619,93420.0,93399.0,0.09143572]
[1768325020218,0.19538619,93420.0,93401.0,0.09644]
[1768325021220,0.09755282,93420.0,93401.0,0.1943843]
[1768325021617,0.09783337,93425.0,93402.0,0.0979443]
[1768325021816,0.09755282,93426.0,93404.0,0.0979443]
[1768325022622,0.09644,93427.0,93408.0,0.0979443]
[1768325022812,0.09879459,93435.0,93411.0,0.09143572]
[1768325023012,0.09879459,93435.0,93414.0,0.0979443]
[1768325023323,0.09755282,93425.0,93392.0,0.91628]
[1768325023513,0.09755282,93421.0,93394.0,0.0979443]
[1768325023715,0.19538619,93421.0,93397.0,0.0979443]
[1768325023914,0.19538619,93421.0,93398.0,0.1943843]
[1768325024117,0.09755282,93421.0,93400.0,0.09143572]
[1768325024420,0.00235459,93435.0,93404.0,0.09143572]
[1768325024624,0.00235459,93435.0,93413.0,0.18938002]
[1768325024812,0.00235459,93435.0,93415.0,0.18938002]
[1768325025013,0.00235459,93435.0,93417.0,0.18938002]
[1768325025222,0.00235459,93435.0,93418.0,0.0979443]
[1768325025425,0.09990741,93435.0,93414.0,0.09644]
[1768325025820,0.09990741,93435.0,93415.0,0.0979443]
[1768325026223,0.00235459,93435.0,93416.0,0.0979443]
[1768325026419,0.00235459,93435.0,93417.0,0.18938002]
[1768325026623,0.09783337,93431.0,93403.0,0.0979443]
[1768325026926,0.09755282,93428.0,93405.0,0.0979443]
[1768325027128,0.09755282,93428.0,93406.0,0.09644]
[1768325027425,0.09755282,93428.0,93407.0,0.0979443]
[1768325027627,0.09755282,93428.0,93408.0,0.0979443]
[1768325028220,0.19538619,93434.0,93409.0,0.0979443]
[1768325028409,0.19538619,93434.0,93410.0,0.0979443]
[1768325028617,0.09755282,93434.0,93413.0,0.0979443]
[1768325028815,0.09755282,93434.0,93413.0,0.1479443]
[1768325029425,0.09755282,93434.0,93414.0,0.0979443]
[1768325029619,0.00235459,93435.0,93416.0,0.18938002]
[1768325029925,0.00235459,93435.0,93417.0,0.0979443]
[1768325030523,0.00235459,93435.0,93416.0,0.09143572]
[1768325030721,0.00235459,93435.0,93417.0,0.0979443]
[1768325031221,0.00235459,93435.0,93406.0,0.09644]
[1768325031222,0.09755282,93434.0,93412.0,0.0979443]
[1768325031423,0.09783337,93432.0,93407.0,0.18938002]
[1768325031612,0.19538619,93431.0,93407.0,0.24938002]
[1768325031810,0.19538619,93430.0,93407.0,0.24938002]
[1768325032018,0.19538619,93430.0,93407.0,0.18938002]
[1768325032218,0.19538619,93430.0,93408.0,0.0979443]
[1768325032419,0.19538619,93430.0,93408.0,0.18938002]
[1768325032711,0.09755282,93430.0,93409.0,0.0979443]
[1768325032916,0.00235459,93435.0,93411.0,0.0979443]
[1768325033128,0.00235459,93435.0,93413.0,0.18938002]
[1768325033426,0.00235459,93435.0,93415.0,0.18938002]
[1768325033616,0.00235459,93435.0,93416.0,0.0979443]
[1768325035630,0.00235459,93435.0,93416.0,0.18938002]
[1768325035825,0.00235459,93435.0,93417.0,0.18938002]
[1768325036026,0.00235459,93435.0,93418.0,0.0979443]
[1768325036324,0.0964,93443.0,93427.0,0.0979443]
[1768325037519,0.0964,93443.0,93426.0,0.09143572]
[1768325037828,0.0964,93443.0,93423.0,0.0979443]
[1768325038529,0.09755282,93446.0,93423.0,0.0979443]
[1768325038828,0.0964,93445.0,93423.0,0.0979443]
[1768325040131,0.0964,93445.0,93424.0,0.0979443]
[1768325040429,0.0964,93445.0,93426.0,0.0979443]
[1768325042124,0.19538619,93434.0,93417.0,0.0964]
[1768325042425,0.09755282,93429.0,93406.0,0.18938002]
[1768325042632,0.19538619,93427.0,93408.0,0.0964]
[1768325042839,0.19538619,93432.0,93408.0,0.1943443]
[1768325043128,0.19538619,93432.0,93409.0,0.0979443]
[1768325043320,0.19538619,93432.0,93410.0,0.0979443]
[1768325043729,0.0964,93434.0,93409.0,0.09143572]
[1768325043730,0.09755282,93429.0,93409.0,0.09143572]
[1768325044633,0.08445282,93429.0,93409.0,0.09143572]
[1768325046434,0.08445282,93429.0,93409.0,0.18536863]
[1768325046633,0.09783337,93430.0,93409.0,0.18536863]
[1768325046634,0.0964,93434.0,93410.0,0.09393291]
[1768325046832,0.18488836,93433.0,93410.0,0.09393291]
[1768325047634,0.18488836,93433.0,93410.0,0.1888202]
[1768325047834,0.18488836,93433.0,93411.0,0.09393291]
[1768325049229,0.18488836,93424.0,93408.0,0.0964]
[1768325049735,0.09084321,93428.0,93408.0,0.0964]
[1768325049936,0.18488836,93425.0,93408.0,0.0964]
[1768325050141,0.18488836,93424.0,93408.0,0.0964]
[1768325050326,0.09404515,93424.0,93408.0,0.0964]
[1768325050525,0.09084321,93429.0,93408.0,0.0964]
[1768325050728,0.18488836,93429.0,93408.0,0.0964]
[1768325053129,0.09084321,93428.0,93408.0,0.0964]
[1768325054040,0.09404515,93424.0,93408.0,0.0964]
[1768325055542,0.09404515,93424.0,93405.0,0.09628826]
[1768325055742,0.09084321,93429.0,93406.0,0.19010021]
[1768325056140,0.09467904,93429.0,93406.0,0.19010021]
[1768325056340,0.09467904,93429.0,93407.0,0.09370021]
[1768325057832,0.18559011,93429.0,93407.0,0.09370021]
[1768325058143,0.09091107,93427.0,93407.0,0.09370021]
[1768325059734,0.09091107,93427.0,93408.0,0.09370021]
[1768325060238,0.09091107,93427.0,93408.0,0.15370021]
[1768325062447,0.09091107,93427.0,93409.0,0.09370021]
[1768325063142,0.09091107,93427.0,93405.0,0.00235535]
[1768325063143,0.18559011,93425.0,93405.0,0.00235535]
[1768325063340,0.18559011,93423.0,93405.0,0.00235535]
[1768325063546,0.18559011,93422.0,93405.0,0.00235535]
[1768325063746,0.18559011,93420.0,93405.0,0.00235535]
[1768325063942,0.18559011,93402.0,93385.0,0.0964]
[1768325064145,0.09467904,93401.0,93382.0,0.0964]
[1768325064336,0.0964,93408.0,93365.0,0.09241809]
[1768325064337,0.09467904,93397.0,93365.0,0.09241809]
[1768325064541,0.09467904,93395.0,93372.0,0.0964]
[1768325064738,0.09091107,93394.0,93372.0,0.0964]
[1768325064943,0.0964,93395.0,93372.0,0.0964]
[1768325064944,0.09091107,93392.0,93372.0,0.0964]
[1768325065142,0.09091107,93388.0,93365.0,0.0964]
[1768325065447,0.09091107,93386.0,93365.0,0.0964]
[1768325065654,0.09091107,93384.0,93365.0,0.0964]
[1768325065847,0.09467904,93383.0,93365.0,0.0964]
[1768325066153,0.00010669,93382.0,93365.0,0.0964]
[1768325067055,0.09644,93389.0,93369.0,0.09370021]
[1768325067254,0.09091107,93395.0,93371.0,0.10441521]
[1768325067552,0.24665892,93395.0,93375.0,0.09370021]
[1768325067750,0.10343984,93402.0,93378.0,0.09370021]
[1768325067949,0.18559011,93393.0,93376.0,0.09644]
[1768325068151,0.09091107,93392.0,93376.0,0.09644]
[1768325068751,0.18559011,93392.0,93376.0,0.09644]
[1768325068943,0.09467904,93388.0,93373.0,0.00535487]
[1768325069144,0.09467904,93386.0,93364.0,0.09644]
[1768325069353,0.09091107,93385.0,93364.0,0.09644]
[1768325071350,0.08441574,93395.0,93373.0,0.09370021]
[1768325071551,0.09467904,93400.0,93375.0,0.09241809]
[1768325071552,0.15413663,93400.0,93375.0,0.09241809]
[1768325071750,0.15413663,93400.0,93376.0,0.1861183]
[1768325072058,0.15413663,93400.0,93377.0,0.09370021]
[1768325073060,0.00235459,93435.0,93409.0,0.1861183]
[1768325073355,0.00235459,93435.0,93414.0,0.1861183]
[1768325073553,0.00235459,93435.0,93415.0,0.1861183]
[1768325073759,0.00235459,93435.0,93417.0,0.1861183]
[1768325074060,0.00235459,93435.0,93418.0,0.1861183]
[1768325074260,0.00235459,93435.0,93419.0,0.1861183]
[1768325074557,0.09644,93439.0,93421.0,0.1861183]
[1768325074752,0.09644,93439.0,93421.0,0.2361183]
[1768325075357,0.09091107,93445.0,93423.0,0.09414624]
[1768325075660,0.09870247,93475.0,93433.0,0.09414624]
[1768325075858,0.09644,93485.0,93460.0,0.09414624]
[1768325076067,0.11390728,93491.0,93470.0,0.14327579]
[1768325076357,0.11390728,93491.0,93470.0,0.19327579]
[1768325076562,5.53e-06,93493.0,93480.0,0.14327579]
[1768325076759,0.0934584,93516.0,93486.0,0.18753521]
[1768325077058,0.09644,93512.0,93492.0,0.18753521]
[1768325077256,0.0934584,93516.0,93492.0,0.23753521]
[1768325077460,0.09644,93521.0,93500.0,0.330811]
[1768325077658,0.09644,93520.0,93502.0,0.18753521]
[1768325077854,0.0934584,93532.0,93502.0,0.24753521]
[1768325078159,0.0934584,93523.0,93487.0,0.09644]
[1768325078369,0.0934584,93521.0,93484.0,0.09414624]
[1768325078659,0.0934584,93521.0,93452.0,0.07707243]
[1768325078660,0.0934584,93504.0,93475.0,0.18753521]
[1768325078860,0.0934584,93502.0,93475.0,0.24753521]
[1768325079466,0.0934584,93502.0,93475.0,0.23753521]
[1768325079850,0.0964,93503.0,93480.0,0.09338897]
[1768325080055,0.0964,93503.0,93482.0,0.18753521]
[1768325080263,0.0934584,93510.0,93482.0,0.18218149]
[1768325080461,0.0964,93509.0,93482.0,0.18218149]
[1768325080853,0.0934584,93508.0,93482.0,0.18218149]
[1768325081058,0.0934584,93508.0,93470.0,0.23971579]
[1768325081059,0.0934584,93508.0,93471.0,0.09338897]
[1768325081258,0.0934584,93508.0,93472.0,0.09338897]
[1768325081454,0.0934584,93508.0,93473.0,0.09338897]
[1768325081654,0.1898584,93507.0,93474.0,0.09338897]
[1768325081961,0.1898584,93507.0,93475.0,0.09338897]
[1768325082154,0.1898584,93507.0,93476.0,0.09338897]
[1768325082361,0.0934584,93506.0,93477.0,0.09414624]
[1768325082751,0.0934584,93506.0,93479.0,0.09414624]
[1768325083159,0.0934584,93506.0,93478.0,0.09338897]
[1768325083160,0.0934584,93505.0,93478.0,0.09338897]
[1768325085256,0.0964,93507.0,93472.0,0.09414624]
[1768325085257,0.0934584,93498.0,93472.0,0.09414624]
[1768325086162,0.0934584,93498.0,93473.0,0.09414624]
[1768325086462,0.0934584,93504.0,93476.0,0.09338897]
[1768325086665,0.09636,93503.0,93477.0,0.09414624]
[1768325087062,0.0934584,93504.0,93477.0,0.09414624]
[1768325087372,0.09636,93503.0,93477.0,0.09414624]
[1768325087663,0.0934584,93502.0,93477.0,0.09414624]
[1768325088270,0.09636,93501.0,93477.0,0.09414624]
[1768325088468,0.0934584,93502.0,93477.0,0.09414624]
[1768325088773,0.09636,93501.0,93477.0,0.09414624]
[1768325089764,0.0934584,93502.0,93477.0,0.09414624]
[1768325090070,0.09636,93501.0,93477.0,0.09414624]
[1768325090363,0.0934584,93500.0,93476.0,0.09338897]
[1768325090573,0.0934584,93500.0,93470.0,0.09644]
[1768325090574,0.0934584,93499.0,93471.0,0.09414624]
[1768325090777,0.0934584,93489.0,93470.0,0.09644]
[1768325090965,0.1898184,93489.0,93470.0,0.09644]
[1768325091267,0.1898184,93489.0,93465.0,0.09414624]
[1768325091669,0.0934584,93488.0,93465.0,0.09414624]
[1768325091867,0.09636,93489.0,93462.0,0.09636]
[1768325091868,0.14327579,93480.0,93462.0,0.09636]
[1768325092070,0.14327579,93480.0,93458.0,0.09414624]
[1768325092367,0.0934584,93485.0,93459.0,0.09414624]
[1768325092560,0.0934584,93485.0,93461.0,0.09414624]
[1768325092760,0.0934584,93485.0,93462.0,0.09414624]
[1768325095857,0.0934584,93485.0,93462.0,0.14414624]
[1768325096061,0.0934584,93485.0,93462.0,0.09414624]
[1768325096463,0.08811041,93485.0,93462.0,0.14414624]
[1768325097076,0.08811041,93485.0,93462.0,0.15414624]
[1768325097665,0.24197826,93480.0,93456.0,0.09414624]
[1768325097866,0.24197826,93480.0,93454.0,0.09636]
[1768325098164,0.09870247,93480.0,93454.0,0.09636]
[1768325098470,0.0934584,93479.0,93454.0,0.19050624]
[1768325098771,0.0934584,93469.0,93440.0,0.18753521]
[1768325098973,0.14327579,93460.0,93440.0,0.06]
[1768325099275,0.0934584,93455.0,93432.0,0.09636]
[1768325099475,0.0934584,93454.0,93432.0,0.09636]
[1768325099772,0.09636,93455.0,93428.0,0.09414624]
[1768325099773,0.19216087,93453.0,93428.0,0.09414624]
[1768325099970,0.0934584,93450.0,93428.0,0.08057146]
[1768325100274,0.0934584,93450.0,93425.0,0.09338897]
[1768325100275,0.0934584,93449.0,93425.0,0.09338897]
[1768325100578,0.09870247,93447.0,93418.0,0.09338897]
[1768325100769,0.0934584,93445.0,93418.0,0.13338897]
[1768325100964,0.0934584,93439.0,93416.0,0.09636]
[1768325101163,0.0934584,93439.0,93416.0,0.12636]
[1768325101672,0.0934584,93438.0,93416.0,0.03]
[1768325101884,0.19216087,93438.0,93416.0,0.03]
[1768325102071,0.0934584,93436.0,93416.0,0.03]
[1768325103866,0.0934584,93435.0,93416.0,0.03]
[1768325104066,0.0934584,93433.0,93413.0,0.07707243]
[1768325104266,0.0934584,93433.0,93416.0,0.07707243]
[1768325104475,0.0934584,93433.0,93415.0,0.07707243]
[1768325104668,0.18446697,93433.0,93415.0,0.08707243]
[1768325105179,0.09673619,93429.0,93412.0,0.07707243]
[1768325105478,0.14327579,93430.0,93413.0,0.07707243]
[1768325105680,0.09636,93433.0,93405.0,0.20438062]
[1768325105681,0.09636,93433.0,93414.0,0.07707243]
[1768325105877,0.09636,93433.0,93413.0,0.07707243]
[1768325106063,0.09636,93433.0,93412.0,0.07707243]
[1768325106270,0.09673619,93445.0,93416.0,0.09816112]
[1768325106573,0.14327579,93450.0,93415.0,0.09874693]
[1768325106574,0.09673619,93441.0,93415.0,0.09874693]
[1768325106877,0.09673619,93438.0,93411.0,0.19690805]
[1768325107087,0.09374581,93445.0,93418.0,0.09816112]
[1768325107374,0.09374581,93441.0,93416.0,0.01071]
[1768325107566,0.09374581,93440.0,93413.0,0.10887112]
[1768325107881,0.09374581,93435.0,93410.0,0.19510693]
[1768325108080,0.09374581,93435.0,93410.0,0.24510693]
[1768325108684,0.09374581,93435.0,93410.0,0.29326805]
[1768325108885,0.09374581,93433.0,93410.0,0.09636]
[1768325109179,0.09374581,93431.0,93410.0,0.09636]
[1768325110372,0.09374581,93430.0,93410.0,0.09636]
[1768325110775,0.09374581,93430.0,93392.0,0.09563452]
[1768325110776,0.09374581,93417.0,93392.0,0.09563452]
[1768325110982,0.09673619,93414.0,93392.0,0.06012602]
[1768325111178,0.09374581,93413.0,93392.0,0.06012602]
[1768325111372,0.190482,93412.0,93392.0,0.06012602]
[1768325111682,0.09374581,93411.0,93392.0,0.06012602]
[1768325111878,0.09673619,93410.0,93392.0,0.06012602]
[1768325112078,0.09374581,93409.0,93392.0,0.06012602]
[1768325112279,0.190482,93416.0,93392.0,0.06012602]
[1768325112578,0.0964,93415.0,93394.0,0.09816112]
[1768325112776,0.09673619,93413.0,93394.0,0.01]
[1768325112978,0.09673619,93412.0,93394.0,0.01]
[1768325113978,0.09673619,93409.0,93376.0,0.09816112]
[1768325114177,0.09673619,93409.0,93380.0,0.15874693]
[1768325114380,0.09673619,93409.0,93380.0,0.06]
[1768325114585,0.14327579,93390.0,93374.0,0.0964]
[1768325114779,0.190482,93393.0,93374.0,0.1564]
[1768325114984,0.09374581,93391.0,93374.0,0.1564]
[1768325115187,0.09673619,93390.0,93367.0,0.0964]
[1768325115481,0.09673619,93390.0,93367.0,0.1564]
[1768325116181,0.00010593,93392.0,93367.0,0.34613067]
[1768325116571,0.09650593,93392.0,93367.0,0.34613067]
[1768325117186,0.09946986,93391.0,93367.0,0.34613067]